bitfinex/quotes_SOLUSD_20240726
["timestamp","ask_amount","ask_price","bid_price","bid_amount"]
[1722004853605,23.0737,180.7,180.65,5.5355]
[1722004854407,23.0737,180.7,180.66,5.5351]
[1722004854588,23.0737,180.7,180.64,13.8389]
[1722004855417,23.0737,180.7,180.65,5.5355]
[1722004855602,23.0737,180.7,180.63,5.5359]
[1722004855913,23.0737,180.7,180.6,13.8419]
[1722004856115,23.0737,180.7,180.64,5.5358]
[1722004856522,23.0737,180.7,180.65,5.5355]
[1722004857935,23.0737,180.7,180.64,5.5358]
[1722004858435,23.0737,180.7,180.63,13.8404]
[1722004858727,23.0737,180.7,180.64,45.0]
[1722004859423,23.0737,180.7,180.66,5.5352]
[1722004859742,23.0737,180.7,180.65,5.5355]
[1722004860351,23.0737,180.7,180.66,5.5352]
[1722004860542,23.0737,180.7,180.63,13.8404]
[1722004860721,23.0737,180.7,180.59,13.8431]
[1722004860722,1.3837132,180.69,180.59,13.8431]
[1722004861097,1.3837132,180.69,180.61,5.5367]
[1722004861324,23.0737,180.7,180.63,5.5361]
[1722004861636,23.0737,180.7,180.62,13.8411]
[1722004861805,23.0737,180.7,180.62,19.3774]
[1722004862126,1.38389835,180.69,180.63,5.5361]
[1722004862307,24.45748965,180.7,180.62,13.8411]
[1722004862813,24.45748965,180.7,180.63,5.5361]
[1722004863009,23.0737,180.7,180.64,5.5358]
[1722004863216,23.0737,180.7,180.64,13.8389]
[1722004863629,23.0737,180.7,180.66,5.5352]
[1722004864453,23.0737,180.7,180.65,5.5355]
[1722004864653,23.0737,180.7,180.66,5.5352]
[1722004865254,23.0737,180.7,180.64,19.3744]
[1722004865970,23.0737,180.7,180.65,5.5354]
[1722004866450,23.0737,180.7,180.64,13.8389]
[1722004867760,1.38381281,180.69,180.64,13.8389]
[1722004868070,23.0737,180.7,180.64,13.8389]
[1722004868277,23.0737,180.7,180.65,45.0]
[1722004868564,23.0737,180.7,180.64,13.8389]
[1722004869864,23.0737,180.7,180.61,2.12017746]
[1722004870045,23.0737,180.7,180.58,20.0]
[1722004870458,1.38386255,180.69,180.58,20.0]
[1722004870831,23.0737,180.7,180.57,2.15893522]
[1722004871150,23.0737,180.7,180.58,0.28647745]
[1722004872058,23.0737,180.7,180.56,0.2864774]
[1722004872253,23.0737,180.7,180.56,45.2864774]
[1722004872437,23.0737,180.7,180.57,20.0]
[1722004872632,23.0737,180.7,180.58,45.28648016]
[1722004872850,23.0737,180.7,180.59,20.0]
[1722004873027,23.0737,180.7,180.6,45.0]
[1722004873233,23.0737,180.7,180.61,20.0]
[1722004873655,1.38384372,180.69,180.61,20.0]
[1722004873839,1.38384372,180.69,180.55,2.16459556]
[1722004874041,1.38384372,180.69,180.51,286.32]
[1722004874253,13.27,180.62,180.56,13.27]
[1722004874559,1.38384372,180.69,180.58,13.27]
[1722004874855,23.0737,180.7,180.54,13.27]
[1722004874856,13.27,180.65,180.59,13.27]
[1722004875237,1.38414323,180.68,180.59,13.27]
[1722004875435,23.0737,180.7,180.54,13.55720411]
[1722004875436,13.27,180.66,180.6,13.27]
[1722004875758,13.27,180.69,180.63,13.27]
[1722004876266,23.0737,180.7,180.57,26.53]
[1722004876434,23.0737,180.7,180.58,65.0]
[1722004877235,23.0737,180.7,180.58,65.28667092]
[1722004877434,23.0737,180.7,180.58,65.0]
[1722004878366,23.0737,180.7,180.58,65.28667194]
[1722004878743,23.0737,180.7,180.6,26.53]
[1722004879066,23.0737,180.7,180.61,65.28607407]
[1722004879478,23.0737,180.7,180.61,65.0]
[1722004880981,23.0737,180.7,180.61,20.0]
[1722004881181,23.0737,180.7,180.57,26.53]
[1722004881182,23.0737,180.7,180.58,20.28660065]
[1722004881550,23.0737,180.7,180.6,26.53]
[1722004881778,23.0737,180.7,180.61,20.0]
[1722004882184,23.0737,180.7,180.62,45.0]
[1722004882777,1.38362716,180.69,180.61,20.0]
[1722004882971,23.0737,180.7,180.58,20.28661053]
[1722004884048,1.38384125,180.69,180.57,26.53]
[1722004884253,1.38384125,180.69,180.54,26.81660847]
[1722004885459,23.0737,180.7,180.55,0.28710347]
[1722004885668,23.0737,180.7,180.57,26.53]
[1722004885867,23.0737,180.7,180.58,20.28677654]
[1722004886752,23.0737,180.7,180.59,45.0]
[1722004886980,23.0737,180.7,180.6,20.0]
[1722004887186,23.0737,180.7,180.61,45.0]
[1722004887382,23.0737,180.7,180.62,20.0]
[1722004887685,23.0737,180.7,180.63,45.0]
[1722004888193,23.0737,180.7,180.62,20.0]
[1722004888356,23.0737,180.7,180.63,45.0]
[1722004889981,23.0737,180.7,180.57,26.81650578]
[1722004890163,23.0737,180.7,180.58,65.0]
[1722004890483,23.0737,180.7,180.58,65.28648791]
[1722004891888,23.0737,180.7,180.6,26.53]
[1722004892184,23.0737,180.7,180.61,65.28609975]
[1722004892989,23.0737,180.7,180.63,26.53]
[1722004893157,21.7287,180.74,180.66,26.53]
[1722004893360,21.7287,180.74,180.67,65.28499846]
[1722004893868,22.3905,180.78,180.67,65.28499846]
[1722004894585,1.38309444,180.77,180.67,65.0]
[1722004894892,22.3905,180.78,180.67,65.0]
[1722004895067,1.38325961,180.77,180.67,65.0]
[1722004895461,22.3905,180.78,180.67,65.0]
[1722004896072,1.38309436,180.77,180.67,65.0]
[1722004896472,1.38309619,180.77,180.67,65.0]
[1722004896991,1.38317255,180.76,180.67,65.0]
[1722004897188,22.3905,180.78,180.67,65.0]
[1722004897387,1.38320588,180.77,180.67,65.0]
[1722004897571,22.3905,180.78,180.67,65.0]
[1722004897772,1.38317219,180.77,180.67,65.0]
[1722004897992,22.3905,180.78,180.68,0.28500273]
[1722004898296,22.3905,180.78,180.67,67.13296009]
[1722004898664,1.38323792,180.77,180.67,22.13296009]
[1722004898864,1.38323792,180.77,180.63,28.39524354]
[1722004899185,1.38323792,180.77,180.63,26.53]
[1722004899390,1.38323792,180.77,180.6,26.53]
[1722004899599,21.8278,180.76,180.6,26.53]
[1722004899774,1.38363566,180.75,180.6,26.53]
[1722004899968,1.38363566,180.75,180.61,0.28611275]
[1722004900498,1.38363566,180.75,180.6,28.9520718]
[1722004901309,1.38363566,180.75,180.61,65.28611664]
[1722004901670,23.21143654,180.76,180.61,65.28611664]
[1722004902375,23.21143654,180.76,180.61,65.0]
[1722004902776,23.21143654,180.76,180.61,65.28611798]
[1722004902993,21.8278,180.76,180.63,26.53]
[1722004903198,21.8278,180.76,180.64,65.28568974]
[1722004903503,21.8278,180.76,180.64,65.28569509]
[1722004903999,21.8278,180.76,180.65,0.28552366]
[1722004904191,21.8278,180.76,180.65,0.2854749]
[1722004904395,21.8278,180.76,180.64,65.28537613]
[1722004904779,1.38333944,180.75,180.64,65.0]
[1722004905089,1.38333944,180.75,180.6,28.66595612]
[1722004905288,22.4465,180.74,180.6,28.66595612]
[1722004905603,1.38333944,180.75,180.6,28.66595612]
[1722004905604,21.6258,180.72,180.6,2.13595612]
[1722004905818,1.3840519,180.71,180.57,26.53]
[1722004905973,1.38403439,180.7,180.57,26.53]
[1722004906177,6.2379,180.68,180.54,28.62082441]
[1722004906482,1.3839955,180.67,180.54,28.62082441]
[1722004907399,1.3839955,180.67,180.55,45.0]
[1722004908179,1.3839955,180.67,180.54,28.62082441]
[1722004908402,1.3839955,180.67,180.51,6.04686159]
[1722004908403,21.9485,180.65,180.51,32.28963568]
[1722004908702,21.9485,180.65,180.57,26.53]
[1722004910007,1.38403034,180.64,180.54,26.53]
[1722004910205,1.38403034,180.64,180.55,45.0]
[1722004910424,21.4921,180.63,180.51,34.46390966]
[1722004910580,1.38459623,180.62,180.51,28.70427398]
[1722004910780,21.4921,180.61,180.48,26.53]
[1722004910980,1.38482801,180.6,180.45,26.53]
[1722004911284,21.4921,180.59,180.45,26.53]
[1722004911599,1.38487402,180.58,180.45,26.53]
[1722004911807,1.38484319,180.57,180.45,26.53]
[1722004912106,21.3707,180.56,180.45,26.81916229]
[1722004912313,21.3707,180.56,180.48,26.53]
[1722004916207,21.3707,180.56,180.49,45.0]
[1722004916404,21.3707,180.56,180.48,26.53]
[1722004916611,1.38489767,180.55,180.48,26.53]
[1722004916917,21.3707,180.56,180.45,26.53]
[1722004917121,21.3707,180.56,180.46,20.28918545]
[1722004917418,21.3707,180.56,180.46,20.0]
[1722004918304,1.38492652,180.55,180.46,20.0]
[1722004918711,21.3707,180.56,180.47,45.0]
[1722004919617,21.3707,180.56,180.48,20.0]
[1722004920212,1.38492559,180.55,180.48,20.0]
[1722004920453,1.38492536,180.55,180.48,20.0]
[1722004920733,21.3707,180.56,180.48,20.0]
[1722004921028,21.5203,180.64,180.55,26.53]
[1722004921722,21.5203,180.64,180.56,45.0]
[1722004922441,1.38424112,180.63,180.55,26.53]
[1722004922613,1.38424112,180.63,180.52,26.53]
[1722004922808,1.38424112,180.63,180.53,65.0]
[1722004923005,1.38424112,180.63,180.52,26.53]
[1722004923231,16.6086,180.6,180.45,2.11959373]
[1722004923438,1.38424112,180.63,180.44,26.53]
[1722004923439,15.7892,180.58,180.44,26.53]
[1722004923612,1.38503861,180.57,180.45,0.28944916]
[1722004923939,1.38503861,180.57,180.44,26.81944934]
[1722004924122,1.38503861,180.57,180.44,28.9913314]
[1722004925045,17.17409931,180.58,180.47,26.53]
[1722004925220,15.7892,180.58,180.48,45.0]
[1722004925418,17.17391725,180.58,180.48,45.0]
[1722004925640,1.38471725,180.57,180.47,26.53]
[1722004925945,15.7892,180.58,180.47,26.53]
[1722004926245,15.7892,180.58,180.48,20.0]
[1722004926417,1.38489948,180.57,180.48,20.0]
[1722004926617,6.3747,180.56,180.48,20.0]
[1722004926930,1.38515456,180.55,180.45,20.0]
[1722004927429,7.75985209,180.56,180.45,20.0]
[1722004927964,15.7003,180.55,180.45,20.0]
[1722004928250,6.199,180.53,180.41,26.53]
[1722004928424,1.38535607,180.52,180.41,26.53]
[1722004928613,6.199,180.53,180.41,26.53]
[1722004928614,1.38536904,180.51,180.41,26.53]
[1722004929019,6.199,180.53,180.41,26.53]
[1722004929216,7.58420717,180.53,180.41,26.53]
[1722004929539,6.199,180.53,180.44,26.53]
[1722004929718,6.199,180.53,180.45,45.0]
[1722004930334,6.199,180.53,180.47,26.53]
[1722004930537,15.7003,180.55,180.5,26.53]
[1722004930743,6.5081,180.58,180.53,26.53]
[1722004930945,6.4221,180.65,180.54,20.0]
[1722004931140,7.80638425,180.65,180.54,20.0]
[1722004931337,6.4221,180.65,180.56,26.53]
[1722004931640,6.4221,180.65,180.57,65.0]
[1722004932220,6.4221,180.65,180.57,65.28742636]
[1722004932420,6.4221,180.65,180.58,0.28742636]
[1722004932620,6.4221,180.65,180.57,65.0]
[1722004933142,6.4221,180.65,180.58,0.28713468]
[1722004934020,6.6567,180.7,180.58,0.28713468]
[1722004934547,6.6567,180.7,180.6,29.85]
[1722004934749,6.6567,180.7,180.61,65.2858375]
[1722004935045,6.6086,180.75,180.61,65.2858375]
[1722004935419,6.6086,180.75,180.64,29.85]
[1722004935728,6.6086,180.75,180.65,65.28523392]
[1722004937923,6.9276001,180.8,180.65,65.28523392]
[1722004938225,1.38312629,180.79,180.65,65.0]
[1722004938433,1.38312629,180.79,180.65,65.28518696]
[1722004938829,1.38312629,180.79,180.65,65.0]
[1722004939224,6.9276001,180.8,180.66,0.28553738]
[1722004939428,8.31102537,180.8,180.66,0.28553738]
[1722004940153,1.3831325,180.79,180.66,0.28553738]
[1722004940649,1.38314169,180.79,180.65,97.01396449]
[1722004941028,1.38314169,180.79,180.65,67.16396449]
[1722004941233,1.38314169,180.79,180.65,22.16396449]
[1722004941559,1.38314169,180.79,180.61,29.85]
[1722004941732,46.38314169,180.79,180.61,29.85]
[1722004942837,46.38314169,180.79,180.62,65.0]
[1722004943237,46.38314169,180.79,180.62,45.0]
[1722004943758,46.38314169,180.79,180.58,0.28591594]
[1722004944545,22.2309,180.78,180.58,22.45491842]
[1722004944855,6.1348,180.76,180.59,0.28632021]
[1722004945035,1.38365293,180.75,180.59,0.28632021]
[1722004946035,1.38365293,180.75,180.59,20.28632021]
[1722004946232,1.38365293,180.75,180.6,45.0]
[1722004946453,1.38365293,180.75,180.61,20.0]
[1722004946658,1.38365293,180.75,180.62,45.0]
[1722004946861,1.38365293,180.75,180.63,20.0]
[1722004947059,1.38365293,180.75,180.64,45.0]
[1722004947357,6.1348,180.76,180.64,45.28598897]
[1722004947547,6.1348,180.76,180.65,20.0]
[1722004947748,1.38343076,180.75,180.66,45.0]
[1722004949145,6.1348,180.76,180.66,45.0]
[1722004949339,6.1348,180.76,180.67,20.0]
[1722004949544,6.1348,180.76,180.68,45.0]
[1722004949945,1.38336352,180.75,180.67,20.0]
[1722004950153,1.38336352,180.75,180.63,20.0]
[1722004950345,7.51828207,180.76,180.64,45.0]
[1722004950561,7.51828207,180.76,180.65,20.0]
[1722004950760,7.51828207,180.76,180.66,45.0]
[1722004950955,7.51828207,180.76,180.67,20.0]
[1722004951264,7.51828207,180.76,180.65,20.0]
[1722004951662,7.51828207,180.76,180.63,20.0]
[1722004951855,7.51828207,180.76,180.64,45.0]
[1722004952155,7.51828207,180.76,180.65,20.0]
[1722004952349,7.51828207,180.76,180.66,45.0]
[1722004952350,7.51822961,180.76,180.66,45.0]
[1722004953771,16.0961,180.78,180.67,20.28556726]
[1722004954066,16.0961,180.78,180.68,45.0]
[1722004954286,16.0961,180.78,180.69,20.0]
[1722004954573,16.0961,180.78,180.7,45.0]
[1722004954768,16.0961,180.78,180.71,20.0]
[1722004955343,17.47936851,180.78,180.67,20.0]
[1722004955754,17.47936851,180.78,180.63,20.28477113]
[1722004955956,17.47936851,180.78,180.64,45.0]
[1722004956167,17.47936851,180.78,180.65,20.0]
[1722004956383,17.47936851,180.78,180.66,45.0]
[1722004956557,17.47936851,180.78,180.67,20.0]
[1722004956758,17.47936851,180.78,180.65,20.0]
[1722004956961,17.47936851,180.78,180.59,2.37848818]
[1722004957163,6.49,180.76,180.59,2.09292414]
[1722004957471,1.38379184,180.75,180.58,30.13642009]
[1722004957664,1.38379184,180.75,180.6,0.28638837]
[1722004957988,6.49,180.76,180.6,0.28638837]
[1722004957989,1.3837099,180.74,180.6,0.28638837]
[1722004958350,6.49,180.76,180.6,0.28638837]
[1722004958545,6.49,180.76,180.62,29.85]
[1722004958777,7.87335852,180.76,180.63,65.28544991]
[1722004958953,6.49,180.76,180.63,65.28544991]
[1722004962786,6.49,180.76,180.66,29.85]
[1722004962989,6.49,180.76,180.67,65.28480283]
[1722004963162,6.49,180.76,180.68,0.28480769]
[1722004963583,0.7851001,180.8,180.7,29.85]
[1722004963783,0.7851001,180.8,180.71,65.0]
[1722004964171,0.7851001,180.8,180.71,65.28440913]
[1722004964479,0.7851001,180.8,180.71,65.0]
[1722004965285,0.7851001,180.8,180.71,65.28455514]
[1722004966010,6.0574,180.84,180.74,29.85]
[1722004966172,6.0574,180.84,180.75,65.28316826]
[1722004967003,15.8491,180.88,180.78,29.85]
[1722004967185,15.8491,180.88,180.79,65.28272634]
[1722004967391,15.8491,180.88,180.79,65.28242309]
[1722004967767,15.8491,180.88,180.79,65.0]
[1722004968189,15.8491,180.88,180.8,0.28264959]
[1722004968402,15.8491,180.88,180.79,65.28253441]
[1722004968866,15.8491,180.88,180.79,65.0]
[1722004973477,15.8491,180.88,180.8,0.28296359]
[1722004973874,2.16730362,180.98,180.85,29.85]
[1722004974101,2.16730362,180.98,180.86,65.0]
[1722004974401,2.16730362,180.98,180.86,20.0]
[1722004974402,6.0758,180.97,180.86,20.0]
[1722004974609,6.0758,180.97,180.82,20.0]
[1722004974610,15.6454,180.95,180.82,20.0]
[1722004974790,1.38226327,180.94,180.82,20.0]
[1722004974979,1.38226327,180.94,180.79,2.46314713]
[1722004975178,1.38226327,180.94,180.79,0.28267762]
[1722004975604,1.38226327,180.94,180.81,29.85]
[1722004975779,1.38226327,180.94,180.82,20.0]
[1722004976200,1.38226327,180.94,180.84,26.45]
[1722004976405,15.6454,180.95,180.85,65.0]
[1722004976916,17.02754024,180.95,180.85,20.0]
[1722004977397,15.6454,180.95,180.86,45.0]
[1722004977597,17.0273788,180.95,180.86,45.0]
[1722004977791,15.6454,180.95,180.86,45.0]
[1722004978308,1.3819812,180.94,180.87,20.0]
[1722004978879,1.3819812,180.94,180.85,20.0]
[1722004979080,17.0273668,180.95,180.85,20.0]
[1722004979788,17.0273668,180.95,180.86,45.0]
[1722004979988,17.0273668,180.95,180.87,20.0]
[1722004980190,15.6454,180.95,180.87,20.0]
[1722004980407,17.02727651,180.95,180.87,20.0]
[1722004981087,15.6454,180.95,180.87,20.0]
[1722004981294,17.02732781,180.95,180.87,20.0]
[1722004981915,17.02732781,180.95,180.85,20.0]
[1722004982423,17.02732781,180.95,180.84,28.59235586]
[1722004982711,6.1746,180.94,180.78,26.45]
[1722004983014,46.3824296,180.93,180.78,26.45]
[1722004983515,1.3824296,180.93,180.78,26.45]
[1722004983806,1.3824296,180.93,180.81,26.45]
[1722004984009,1.3824296,180.93,180.82,20.0]
[1722004984221,1.38231355,180.93,180.82,20.0]
[1722004984428,1.38231355,180.93,180.83,45.0]
[1722004984605,1.38231355,180.93,180.84,20.0]
[1722004984923,1.38218958,180.92,180.84,20.0]
[1722004985121,6.1746,180.94,180.84,20.0]
[1722004985326,1.38216708,180.93,180.82,20.0]
[1722004985528,1.38218815,180.92,180.83,45.0]
[1722004985726,1.38218815,180.92,180.84,20.0]
[1722004985907,1.38218815,180.92,180.81,26.45]
[1722004986223,1.38218815,180.92,180.78,26.45]
[1722004986420,1.38218815,180.92,180.79,20.0]
[1722004986618,1.38218815,180.92,180.78,26.45]
[1722004986818,22.654,180.91,180.78,26.45]
[1722004987006,46.38277765,180.9,180.78,26.45]
[1722004987206,6.1775,180.88,180.75,26.45]
[1722004987402,62.1434103,180.87,180.75,26.45]
[1722004987611,6.2685,180.86,180.72,26.45]
[1722004987817,46.38303871,180.85,180.72,26.45]
[1722004988014,22.029,180.84,180.72,26.45]
[1722004988213,46.38320905,180.83,180.67,29.8]
[1722004988423,1.38319737,180.82,180.67,29.8]
[1722004989012,22.029,180.84,180.68,0.28504968]
[1722004989215,1.38303836,180.83,180.68,0.28504968]
[1722004989415,22.029,180.84,180.67,31.99232123]
[1722004989416,1.38303807,180.82,180.67,31.99232123]
[1722004989608,16.1004,180.8,180.67,31.99232123]
[1722004989915,1.38338975,180.79,180.67,2.19232123]
[1722004990111,16.1004,180.8,180.63,29.8]
[1722004990317,16.1004,180.8,180.64,6.04597607]
[1722004990516,16.1004,180.8,180.69,29.8]
[1722004990726,16.1004,180.8,180.7,0.28443515]
[1722004990905,16.1004,180.8,180.73,29.8]
[1722004991102,6.1202,180.81,180.74,45.28386159]
[1722004991608,6.1202,180.81,180.75,20.0]
[1722004991839,6.1202,180.81,180.76,45.0]
[1722004992039,6.1202,180.81,180.77,20.0]
[1722004992509,6.5915,180.88,180.77,20.0]
[1722004992817,6.5915,180.88,180.78,45.0]
[1722004993222,1.38254739,180.87,180.78,45.0]
[1722004994423,6.5915,180.88,180.78,45.0]
[1722004995141,1.3823988,180.87,180.78,45.0]
[1722004995935,6.5915,180.88,180.78,45.0]
[1722004996114,6.5915,180.88,180.79,20.0]
[1722004996847,6.5915,180.88,180.78,20.0]
[1722004998417,6.5915,180.88,180.79,45.0]
[1722004999142,1.38233667,180.87,180.79,45.0]
[1722004999359,16.0785,180.86,180.78,20.0]
[1722005000140,7.77222189,180.85,180.7,6.83670797]
[1722005000360,45.0,180.84,180.67,30.08457014]
[1722005000560,15.333,180.82,180.67,29.8]
[1722005000753,6.4176,180.8,180.67,29.8]
[1722005000936,1.38334043,180.79,180.64,0.285149]
[1722005001434,1.38334043,180.79,180.64,2.47914955]
[1722005001634,1.38334043,180.79,180.64,0.285149]
[1722005002054,1.38334043,180.79,180.63,29.8]
[1722005002270,46.38334043,180.79,180.63,29.8]
[1722005003092,46.38334043,180.79,180.64,0.28581608]
[1722005003288,1.38334043,180.79,180.63,29.8]
[1722005003442,1.38334043,180.79,180.63,30.08558748]
[1722005003645,1.38334043,180.79,180.63,32.21593115]
[1722005003873,1.38334043,180.79,180.64,20.0]
[1722005004045,7.80097071,180.8,180.65,0.28547917]
[1722005004244,1.38329798,180.79,180.65,0.28547917]
[1722005004451,1.38329798,180.79,180.65,45.28547917]
[1722005004653,1.38329798,180.79,180.66,20.0]
[1722005004860,1.38329798,180.79,180.67,45.0]
[1722005005462,1.38329798,180.79,180.68,20.0]
[1722005005773,1.38329798,180.79,180.69,45.0]
[1722005006174,6.4176,180.8,180.69,45.0]
[1722005006346,1.38325344,180.79,180.69,45.0]
[1722005007369,6.4176,180.8,180.7,0.28519495]
[1722005007974,6.4176,180.8,180.7,20.28519495]
[1722005008174,6.4176,180.8,180.71,45.0]
[1722005008370,6.4176,180.8,180.72,20.0]
[1722005008550,6.4176,180.8,180.73,45.0]
[1722005008751,6.4176,180.8,180.74,20.0]
[1722005009572,6.4176,180.8,180.75,45.28403019]
[1722005009775,6.0375,180.84,180.76,20.0]
[1722005009988,6.0375,180.84,180.77,45.28319082]
[1722005010158,6.0375,180.84,180.78,20.0]
[1722005010482,6.0375,180.84,180.79,45.0]
[1722005011682,6.6613,180.89,180.8,0.28317076]
[1722005011853,6.6613,180.89,180.8,20.28317076]
[1722005012387,15.3752,180.92,180.81,45.0]
[1722005012562,15.3752,180.92,180.82,20.2818808]
[1722005012877,15.3752,180.92,180.83,45.28187048]
[1722005013085,15.3752,180.92,180.84,20.0]
[1722005013255,15.6626,180.97,180.85,45.28175787]
[1722005013583,15.6626,180.97,180.86,20.0]
[1722005013753,15.6626,180.97,180.87,45.0]
[1722005013952,15.6626,180.97,180.88,20.28136424]
[1722005014158,15.6626,180.97,180.89,45.0]
[1722005014373,0.7851001,180.98,180.9,20.28086192]
[1722005014865,0.7851001,180.98,180.91,45.0]
[1722005015177,0.7851001,180.98,180.91,65.0]
[1722005015388,0.7851001,180.98,180.91,45.0]
[1722005015559,0.7851001,180.98,180.9,45.0]
[1722005015761,0.7851001,180.98,180.91,20.0]
[1722005015987,0.7851001,180.98,180.92,45.0]
[1722005016293,0.7851001,180.98,180.91,20.0]
[1722005016468,0.7851001,180.98,180.86,2.43494835]
[1722005016800,0.7851001,180.98,180.86,65.28142161]
[1722005019098,0.7851001,180.98,180.86,65.0]
[1722005021002,0.7851001,180.98,180.89,29.8]
[1722005021185,0.7851001,180.98,180.9,65.28091906]
[1722005024419,0.7851001,180.98,180.9,20.0]
[1722005025099,0.7851001,180.98,180.9,20.28071703]
[1722005025311,0.7851001,180.98,180.9,20.0]
[1722005025831,0.7851001,180.98,180.91,45.0]
[1722005026121,0.7851001,180.98,180.92,20.0]
[1722005027323,0.7851001,180.98,180.93,45.0]
[1722005027500,0.7851001,180.98,180.94,20.0]
[1722005034428,0.7851001,180.98,180.94,46.42]
[1722005035144,0.7851001,180.98,180.95,45.28046871]
[1722005035310,0.7851001,180.98,180.96,20.0]
[1722005035514,0.7851001,180.98,180.94,46.42]
[1722005036130,0.7851001,180.98,180.95,45.0]
[1722005036851,0.7851001,180.98,180.95,45.28022256]
[1722005037146,0.7851001,180.98,180.95,45.0]
[1722005037506,0.7851001,180.98,180.97,26.42]
[1722005037745,0.7851001,180.98,180.97,71.42]
[1722005038049,16.0451,181.02,180.97,91.42]
[1722005038213,16.0451,181.02,180.98,45.0]
[1722005038931,16.0451,181.02,180.99,0.27989494]
[1722005039333,16.0451,181.02,180.98,45.0]
[1722005040536,6.192,181.04,180.99,0.28003234]
[1722005040735,6.192,181.04,180.99,0.27955681]
[1722005041037,6.192,181.04,180.98,65.0]
[1722005041530,6.192,181.04,180.98,20.0]
[1722005041850,6.192,181.04,180.98,0.28019762]
[1722005042017,6.192,181.04,180.97,26.42]
[1722005042836,6.192,181.04,180.98,45.0]
[1722005043041,6.192,181.04,180.98,45.27983167]
[1722005043339,6.192,181.04,180.98,45.0]
[1722005045841,15.9472,181.06,180.97,0.27944984]
[1722005046033,15.9472,181.06,180.97,20.27925439]
[1722005046221,15.9472,181.06,180.97,20.0]
[1722005047350,15.9472,181.06,180.98,0.28019437]
[1722005047549,15.9472,181.06,180.97,20.0]
[1722005047846,17.32823636,181.06,180.97,20.0]
[1722005049746,15.9472,181.06,180.97,20.0]
[1722005050042,16.4085,181.03,180.9,2.14842087]
[1722005050250,1.38174067,181.02,180.87,26.42]
[1722005050449,8.04143041,181.01,180.87,26.42]
[1722005050751,16.3953,181.0,180.87,26.42]
[1722005050941,16.3953,181.0,180.88,0.2811375]
[1722005051124,17.77686168,181.0,180.87,26.42]
[1722005051325,17.77686168,181.0,180.84,26.42]
[1722005051750,6.4947,180.99,180.84,26.42]
[1722005052047,6.4947,180.97,180.81,26.42]
[1722005052254,16.5036475,180.96,180.81,28.55166989]
[1722005052553,1.3821475,180.95,180.81,28.55166989]
[1722005052848,1.38214558,180.95,180.82,0.28253886]
[1722005053170,1.38195935,180.95,180.84,26.42]
[1722005053331,1.38188833,180.95,180.84,26.42]
[1722005053531,15.1215,180.96,180.84,26.42]
[1722005053853,15.1215,180.96,180.85,45.28202254]
[1722005054154,16.50331198,180.96,180.85,45.0]
[1722005054443,1.38184594,180.95,180.86,20.0]
[1722005054623,15.1215,180.96,180.86,20.0]
[1722005054829,15.1215,180.96,180.85,20.0]
[1722005056434,15.1215,180.96,180.86,45.0]
[1722005056735,15.1215,180.96,180.87,20.0]
[1722005056962,15.1215,180.96,180.87,46.42]
[1722005057123,15.1215,180.96,180.88,45.28174577]
[1722005057451,15.1215,180.96,180.89,20.0]
[1722005057758,15.1215,180.96,180.9,71.42]
[1722005057954,15.1215,180.96,180.91,20.0]
[1722005058832,15.1215,180.96,180.87,26.42]
[1722005059033,1.38180891,180.95,180.84,26.42]
[1722005059245,15.1215,180.96,180.85,20.0]
[1722005059858,15.1215,180.96,180.86,0.28181496]
[1722005060080,15.1215,180.96,180.87,26.42]